[Event "Early-Titled-Tuesday-Blitz-August-29-2023"]
[Site "Chess.com"]
[Date "2023.08.29"]
[Round "8"]
[White "garfield_pg"]
[Black "DeArron_Fox"]
[Result "1-0"]
[WhiteElo "2383"]
[BlackElo "2475"]
[TimeControl "180+1"]
[EndTime "9:26:34 PDT"]
[Termination "garfield_pg won by resignation"]

1. d4 {[%clk 0:03:00.9]} 1... d5 {[%clk 0:02:58.9]} 2. Bf4 {[%clk 0:03:00.3]}
2... Nf6 {[%clk 0:02:55.8]} 3. e3 {[%clk 0:03:00.3]} 3... c5 {[%clk 0:02:55.6]}
4. c3 {[%clk 0:03:00]} 4... Nc6 {[%clk 0:02:55.4]} 5. Nd2 {[%clk 0:02:59.2]}
5... Bf5 {[%clk 0:02:55.5]} 6. Ngf3 {[%clk 0:02:58.1]} 6... e6 {[%clk
0:02:53.8]} 7. Qb3 {[%clk 0:02:58.4]} 7... Qc8 {[%clk 0:02:50.8]} 8. c4 {[%clk
0:02:58.4]} 8... cxd4 {[%clk 0:02:40.6]} 9. Nxd4 {[%clk 0:02:57.8]} 9... Nxd4
{[%clk 0:02:35.4]} 10. exd4 {[%clk 0:02:58.7]} 10... a6 {[%clk 0:02:20.1]} 11.
c5 {[%clk 0:02:56.6]} 11... Be7 {[%clk 0:02:14.7]} 12. Be2 {[%clk 0:02:55.3]}
12... O-O {[%clk 0:02:14.7]} 13. O-O {[%clk 0:02:55.4]} 13... Nd7 {[%clk
0:02:11]} 14. Rfc1 {[%clk 0:02:25.2]} 14... Qc6 {[%clk 0:01:45]} 15. Qc3 {[%clk
0:02:18.5]} 15... b6 {[%clk 0:00:36.3]} 16. b4 {[%clk 0:02:04.6]} 16... bxc5
{[%clk 0:00:34.7]} 17. bxc5 {[%clk 0:02:05.5]} 17... Bf6 {[%clk 0:00:20.1]} 18.
Nb3 {[%clk 0:02:01.6]} 18... Rfc8 {[%clk 0:00:13.3]} 19. a4 {[%clk 0:01:55.1]}
19... Nf8 {[%clk 0:00:03.9]} 20. Ra2 {[%clk 0:01:48.7]} 20... Qe8 {[%clk
0:00:04.4]} 21. Bf3 {[%clk 0:01:40]} 21... Ng6 {[%clk 0:00:04.7]} 22. Bd6 {[%clk
0:01:39.1]} 22... Rc6 {[%clk 0:00:03]} 23. Na5 {[%clk 0:01:37.7]} 23... Rcc8
{[%clk 0:00:03.5]} 24. g3 {[%clk 0:01:30.2]} 24... e5 {[%clk 0:00:03.6]} 25.
Bxd5 {[%clk 0:01:28.2]} 25... exd4 {[%clk 0:00:03.6]} 26. Qf3 {[%clk 0:01:26.7]}
26... Be6 {[%clk 0:00:04.2]} 27. Re2 {[%clk 0:01:21.4]} 27... Ra7 {[%clk
0:00:04.3]} 28. Rce1 {[%clk 0:01:12.4]} 28... Qd7 {[%clk 0:00:02.1]} 29. Bxe6
{[%clk 0:01:06]} 29... fxe6 {[%clk 0:00:03]} 30. Rxe6 {[%clk 0:01:06]} 30... Qf7
{[%clk 0:00:03.7]} 31. Nc4 {[%clk 0:00:56.1]} 31... Rd7 {[%clk 0:00:03.4]} 32.
Nb6 {[%clk 0:00:55.6]} 32... Rcd8 {[%clk 0:00:01.9]} 33. Nxd7 {[%clk 0:00:55.5]}
33... Qxd7 {[%clk 0:00:02.8]} 34. Qd5 {[%clk 0:00:54.1]} 34... Kh8 {[%clk
0:00:03.2]} 35. c6 {[%clk 0:00:52.3]} 35... Qc8 {[%clk 0:00:03.5]} 36. c7 {[%clk
0:00:49.2]} 36... Rg8 {[%clk 0:00:03.5]} 37. Qc6 {[%clk 0:00:48.7]} 37... h5
{[%clk 0:00:02.5]} 38. Re8 {[%clk 0:00:49]} 38... Qh3 {[%clk 0:00:01.7]} 39.
Rxg8+ {[%clk 0:00:48.2]} 39... Kh7 {[%clk 0:00:02.6]} 40. c8=Q {[%clk
0:00:42.4]} 1-0

[Event "Early-Titled-Tuesday-Blitz-August-29-2023"]
[Site "Chess.com"]
[Date "2023.08.29"]
[Round "8"]
[White "Herman-NY"]
[Black "twofoxniel"]
[Result "0-1"]
[WhiteElo "2454"]
[BlackElo "2653"]
[TimeControl "180+1"]
[EndTime "9:26:38 PDT"]
[Termination "twofoxniel won on time"]

1. e4 {[%clk 0:03:00.9]} 1... d5 {[%clk 0:02:53.7]} 2. exd5 {[%clk 0:03:00.8]}
2... Nf6 {[%clk 0:02:52.7]} 3. Nc3 {[%clk 0:02:58.5]} 3... Nxd5 {[%clk
0:02:52.3]} 4. Bc4 {[%clk 0:02:59.2]} 4... Nb6 {[%clk 0:02:52]} 5. Bb3 {[%clk
0:02:59.6]} 5... Nc6 {[%clk 0:02:52.1]} 6. Qf3 {[%clk 0:02:58.6]} 6... e6 {[%clk
0:02:48.8]} 7. Nge2 {[%clk 0:02:59]} 7... Be7 {[%clk 0:02:48.7]} 8. d3 {[%clk
0:02:58.9]} 8... O-O {[%clk 0:02:49.4]} 9. h4 {[%clk 0:02:58.6]} 9... Na5 {[%clk
0:02:48.9]} 10. g4 {[%clk 0:02:32.8]} 10... Nxb3 {[%clk 0:02:45.4]} 11. axb3
{[%clk 0:02:32.9]} 11... Nd5 {[%clk 0:02:44.9]} 12. g5 {[%clk 0:02:04.2]} 12...
Nb4 {[%clk 0:02:42.1]} 13. Kd1 {[%clk 0:02:04.3]} 13... Bd7 {[%clk 0:02:27.9]}
14. Rg1 {[%clk 0:01:56.6]} 14... Bc6 {[%clk 0:02:27.5]} 15. Qg3 {[%clk
0:01:53.5]} 15... Bd6 {[%clk 0:02:22.6]} 16. Bf4 {[%clk 0:01:52.8]} 16... Re8
{[%clk 0:02:15]} 17. Ra5 {[%clk 0:01:36.4]} 17... b6 {[%clk 0:02:06.6]} 18. Re5
{[%clk 0:01:36.6]} 18... a5 {[%clk 0:01:48.7]} 19. Nd4 {[%clk 0:01:23]} 19...
Bb7 {[%clk 0:01:35.1]} 20. g6 {[%clk 0:00:16]} 20... hxg6 {[%clk 0:01:12.7]} 21.
h5 {[%clk 0:00:16.3]} 21... Qf6 {[%clk 0:00:27.3]} 22. hxg6 {[%clk 0:00:15.4]}
22... fxg6 {[%clk 0:00:16]} 23. Ncb5 {[%clk 0:00:12.3]} 23... Nd5 {[%clk
0:00:14.2]} 24. Nxd6 {[%clk 0:00:05.2]} 24... Nxf4 {[%clk 0:00:14.5]} 25. Nxe8
{[%clk 0:00:04.4]} 25... Qxe5 {[%clk 0:00:14.8]} 26. Nxc7 {[%clk 0:00:03]} 26...
Qxd4 {[%clk 0:00:14.4]} 0-1

[Event "Early-Titled-Tuesday-Blitz-August-29-2023"]
[Site "Chess.com"]
[Date "2023.08.29"]
[Round "8"]
[White "YEIKO2017"]
[Black "crazy_m_attack"]
[Result "1-0"]
[WhiteElo "2463"]
[BlackElo "2335"]
[TimeControl "180+1"]
[EndTime "9:26:39 PDT"]
[Termination "YEIKO2017 won on time"]

1. e4 {[%clk 0:03:00.9]} 1... e5 {[%clk 0:03:00]} 2. Nf3 {[%clk 0:03:00.4]} 2...
Nc6 {[%clk 0:03:00.5]} 3. Bb5 {[%clk 0:03:00.3]} 3... a6 {[%clk 0:03:00.5]} 4.
Ba4 {[%clk 0:03:00.6]} 4... Nf6 {[%clk 0:03:01]} 5. d4 {[%clk 0:03:01]} 5...
exd4 {[%clk 0:02:45.7]} 6. O-O {[%clk 0:02:59.8]} 6... b5 {[%clk 0:02:17.7]} 7.
Bb3 {[%clk 0:02:58.4]} 7... Be7 {[%clk 0:02:13.4]} 8. e5 {[%clk 0:02:56.7]} 8...
Ne4 {[%clk 0:02:10.4]} 9. Bd5 {[%clk 0:02:56.6]} 9... Nc5 {[%clk 0:02:02]} 10.
Nxd4 {[%clk 0:02:34.6]} 10... O-O {[%clk 0:01:38.9]} 11. Bxc6 {[%clk 0:02:30.6]}
11... dxc6 {[%clk 0:01:39.8]} 12. Nxc6 {[%clk 0:02:30.8]} 12... Qe8 {[%clk
0:01:39.8]} 13. Nxe7+ {[%clk 0:02:28.6]} 13... Qxe7 {[%clk 0:01:40]} 14. Re1
{[%clk 0:02:28]} 14... Bb7 {[%clk 0:01:37.9]} 15. Qg4 {[%clk 0:02:18.8]} 15...
Rfe8 {[%clk 0:01:14.4]} 16. Nc3 {[%clk 0:01:48.6]} 16... b4 {[%clk 0:01:09]} 17.
Qxb4 {[%clk 0:01:35.6]} 17... Rab8 {[%clk 0:01:06]} 18. Be3 {[%clk 0:01:25.3]}
18... Nd7 {[%clk 0:00:55.1]} 19. Qxe7 {[%clk 0:01:24.6]} 19... Rxe7 {[%clk
0:00:56]} 20. Bf4 {[%clk 0:01:24.7]} 20... h6 {[%clk 0:00:51.4]} 21. h4 {[%clk
0:01:14]} 21... Nc5 {[%clk 0:00:45.8]} 22. Rad1 {[%clk 0:01:10.5]} 22... Ne6
{[%clk 0:00:45.7]} 23. Bg3 {[%clk 0:01:10.4]} 23... Bc6 {[%clk 0:00:39.3]} 24.
b3 {[%clk 0:01:10.6]} 24... Rb4 {[%clk 0:00:27.9]} 25. Nd5 {[%clk 0:01:05.5]}
25... Bxd5 {[%clk 0:00:26.7]} 26. Rxd5 {[%clk 0:01:06.4]} 26... g6 {[%clk
0:00:15.6]} 27. c4 {[%clk 0:00:49.4]} 27... c5 {[%clk 0:00:10.8]} 28. Red1
{[%clk 0:00:38.8]} 28... a5 {[%clk 0:00:08.9]} 29. f4 {[%clk 0:00:37.5]} 29...
a4 {[%clk 0:00:05.6]} 30. R5d3 {[%clk 0:00:31.5]} 30... Nd4 {[%clk 0:00:01.6]}
31. Bf2 {[%clk 0:00:29.1]} 31... Ne2+ {[%clk 0:00:01]} 32. Kh2 {[%clk
0:00:29.4]} 32... Nxf4 {[%clk 0:00:01.4]} 33. Bxc5 {[%clk 0:00:29.5]} 1-0

[Event "Early-Titled-Tuesday-Blitz-August-29-2023"]
[Site "Chess.com"]
[Date "2023.08.29"]
[Round "8"]
[White "masenik"]
[Black "fireheart92"]
[Result "0-1"]
[WhiteElo "2437"]
[BlackElo "2938"]
[TimeControl "180+1"]
[EndTime "9:26:44 PDT"]
[Termination "fireheart92 won on time"]

1. e4 {[%clk 0:03:00.9]} 1... g6 {[%clk 0:02:58.3]} 2. d4 {[%clk 0:02:59.9]}
2... Nf6 {[%clk 0:02:58.9]} 3. Nc3 {[%clk 0:02:57.7]} 3... d5 {[%clk 0:02:58.4]}
4. e5 {[%clk 0:02:52.4]} 4... Nh5 {[%clk 0:02:58.4]} 5. g4 {[%clk 0:02:47.8]}
5... Ng7 {[%clk 0:02:58.2]} 6. Bg2 {[%clk 0:02:45.5]} 6... c6 {[%clk 0:02:57.4]}
7. Be3 {[%clk 0:02:39.2]} 7... h5 {[%clk 0:02:57.5]} 8. h3 {[%clk 0:02:38]} 8...
Qb6 {[%clk 0:02:57.4]} 9. Rb1 {[%clk 0:02:29.9]} 9... Na6 {[%clk 0:02:55.1]} 10.
a3 {[%clk 0:02:28.8]} 10... Nc7 {[%clk 0:02:51.6]} 11. Qf3 {[%clk 0:02:06.9]}
11... Nge6 {[%clk 0:02:11.2]} 12. Nge2 {[%clk 0:02:02.3]} 12... Bd7 {[%clk
0:02:10.7]} 13. gxh5 {[%clk 0:01:42.1]} 13... Rxh5 {[%clk 0:02:10.2]} 14. Ng3
{[%clk 0:01:41]} 14... Rh4 {[%clk 0:02:06.8]} 15. Nce2 {[%clk 0:01:19.7]} 15...
Nb5 {[%clk 0:02:00.6]} 16. O-O {[%clk 0:01:11.3]} 16... Nbxd4 {[%clk 0:01:58.2]}
17. Nxd4 {[%clk 0:01:10.2]} 17... Nxd4 {[%clk 0:01:55.5]} 18. Qd1 {[%clk
0:01:05.6]} 18... Bh6 {[%clk 0:01:55.4]} 19. Bxh6 {[%clk 0:00:49.8]} 19... Rxh6
{[%clk 0:01:56.3]} 20. c4 {[%clk 0:00:39.3]} 20... dxc4 {[%clk 0:01:52.9]} 21.
Qc1 {[%clk 0:00:38.3]} 21... Rh8 {[%clk 0:01:45.1]} 22. Qxc4 {[%clk 0:00:37.3]}
22... Be6 {[%clk 0:01:45]} 23. Qc3 {[%clk 0:00:35]} 23... O-O-O {[%clk
0:01:45.2]} 24. b4 {[%clk 0:00:32.5]} 24... Bxh3 {[%clk 0:01:41.7]} 25. Rbc1
{[%clk 0:00:27.7]} 25... Bxg2 {[%clk 0:01:41.4]} 26. Kxg2 {[%clk 0:00:28.6]}
26... Qb5 {[%clk 0:01:40.3]} 27. Qc4 {[%clk 0:00:16.6]} 27... Qxc4 {[%clk
0:01:36.5]} 28. Rxc4 {[%clk 0:00:17.5]} 28... a6 {[%clk 0:01:33.3]} 29. Ne4
{[%clk 0:00:15.9]} 29... Rd5 {[%clk 0:01:28.8]} 30. Ng5 {[%clk 0:00:15.3]} 30...
Rf8 {[%clk 0:01:24.6]} 31. f4 {[%clk 0:00:15.2]} 31... f6 {[%clk 0:01:24.8]} 32.
exf6 {[%clk 0:00:13.6]} 32... exf6 {[%clk 0:01:25.7]} 33. Ne4 {[%clk 0:00:13.6]}
33... Nf5 {[%clk 0:01:25.5]} 34. Rf3 {[%clk 0:00:12.1]} 34... Nh4+ {[%clk
0:01:23.4]} 35. Kg3 {[%clk 0:00:12.3]} 35... Nxf3 {[%clk 0:01:24.3]} 36. Kxf3
{[%clk 0:00:13.2]} 36... Rd3+ {[%clk 0:01:24.6]} 37. Ke2 {[%clk 0:00:12.7]}
37... Rxa3 {[%clk 0:01:24.7]} 38. Nc5 {[%clk 0:00:12.8]} 38... Re8+ {[%clk
0:01:24.1]} 39. Kf2 {[%clk 0:00:13.2]} 39... Rd8 {[%clk 0:01:24]} 40. Ke2 {[%clk
0:00:11.6]} 40... b6 {[%clk 0:01:22.7]} 41. Ne4 {[%clk 0:00:10.5]} 41... f5
{[%clk 0:01:22.2]} 42. Ng5 {[%clk 0:00:09]} 42... Kb7 {[%clk 0:01:22]} 43. Nf7
{[%clk 0:00:06.4]} 43... Re8+ {[%clk 0:01:18.5]} 44. Ne5 {[%clk 0:00:06.3]}
44... g5 {[%clk 0:01:18.1]} 45. Kf2 {[%clk 0:00:03.1]} 45... gxf4 {[%clk
0:01:18.1]} 46. Nf7 {[%clk 0:00:03.3]} 46... Rd3 {[%clk 0:01:16.9]} 47. Rxf4
{[%clk 0:00:02.8]} 47... Re4 {[%clk 0:01:16.6]} 48. Rxf5 {[%clk 0:00:01.4]}
48... Rxb4 {[%clk 0:01:16.4]} 49. Ne5 {[%clk 0:00:01.4]} 49... Rb2+ {[%clk
0:01:15.9]} 50. Ke1 {[%clk 0:00:02.1]} 50... Rh3 {[%clk 0:01:15.3]} 51. Rf7+
{[%clk 0:00:02]} 51... Kc8 {[%clk 0:01:15.8]} 52. Rf8+ {[%clk 0:00:01.3]} 52...
Kc7 {[%clk 0:01:16.4]} 0-1

[Event "Early-Titled-Tuesday-Blitz-August-29-2023"]
[Site "Chess.com"]
[Date "2023.08.29"]
[Round "8"]
[White "Mikhail_Golubev"]
[Black "stepanosinovsky"]
[Result "0-1"]
[WhiteElo "2542"]
[BlackElo "2315"]
[TimeControl "180+1"]
[EndTime "9:26:44 PDT"]
[Termination "stepanosinovsky won on time"]

1. e4 {[%clk 0:03:00.9]} 1... e5 {[%clk 0:02:53.8]} 2. Nf3 {[%clk 0:03:00.2]}
2... Nc6 {[%clk 0:02:54]} 3. Bc4 {[%clk 0:03:00.7]} 3... Nf6 {[%clk 0:02:53.7]}
4. Ng5 {[%clk 0:03:00.6]} 4... d5 {[%clk 0:02:54.2]} 5. exd5 {[%clk 0:03:00.8]}
5... Na5 {[%clk 0:02:54.8]} 6. Bb5+ {[%clk 0:03:01]} 6... c6 {[%clk 0:02:55.5]}
7. dxc6 {[%clk 0:03:01.6]} 7... bxc6 {[%clk 0:02:56.4]} 8. Bd3 {[%clk
0:03:01.2]} 8... Nd5 {[%clk 0:02:56.2]} 9. Nf3 {[%clk 0:03:00.9]} 9... Bd6
{[%clk 0:02:54.5]} 10. O-O {[%clk 0:02:59]} 10... O-O {[%clk 0:02:53.6]} 11. Re1
{[%clk 0:02:58.4]} 11... Qc7 {[%clk 0:02:33.4]} 12. Nc3 {[%clk 0:02:51.8]} 12...
f5 {[%clk 0:02:30.6]} 13. Ng5 {[%clk 0:01:10.7]} 13... e4 {[%clk 0:01:33.9]} 14.
Ncxe4 {[%clk 0:00:36.8]} 14... fxe4 {[%clk 0:01:27.9]} 15. Nxe4 {[%clk 0:00:36]}
15... Bxh2+ {[%clk 0:01:24.7]} 16. Kh1 {[%clk 0:00:36]} 16... Bf5 {[%clk
0:00:40.9]} 17. Qh5 {[%clk 0:00:35.6]} 17... Be5 {[%clk 0:00:21.2]} 18. g3
{[%clk 0:00:29.4]} 18... Bg6 {[%clk 0:00:18.7]} 19. Qh2 {[%clk 0:00:27.8]} 19...
Rae8 {[%clk 0:00:17.9]} 20. Rb1 {[%clk 0:00:26.4]} 20... Nb7 {[%clk 0:00:16]}
21. b4 {[%clk 0:00:25.9]} 21... Nd6 {[%clk 0:00:16.4]} 22. Ba3 {[%clk
0:00:22.8]} 22... Nxe4 {[%clk 0:00:13.1]} 23. Bxe4 {[%clk 0:00:23]} 23... Bxe4+
{[%clk 0:00:12.4]} 24. Rxe4 {[%clk 0:00:23.6]} 24... Bxg3 {[%clk 0:00:11.6]} 25.
fxg3 {[%clk 0:00:08.7]} 25... Rxe4 {[%clk 0:00:11.1]} 26. d3 {[%clk 0:00:08.6]}
26... Re6 {[%clk 0:00:09.9]} 27. c4 {[%clk 0:00:06.8]} 27... Rh6 {[%clk
0:00:09.4]} 0-1

[Event "Early-Titled-Tuesday-Blitz-August-29-2023"]
[Site "Chess.com"]
[Date "2023.08.29"]
[Round "8"]
[White "CraiggoryC"]
[Black "joksijoksi"]
[Result "0-1"]
[WhiteElo "2187"]
[BlackElo "2462"]
[TimeControl "180+1"]
[EndTime "9:26:44 PDT"]
[Termination "joksijoksi won on time"]

1. e4 {[%clk 0:02:59]} 1... e5 {[%clk 0:02:59.9]} 2. Nc3 {[%clk 0:02:58.3]} 2...
Nc6 {[%clk 0:02:58.3]} 3. f4 {[%clk 0:02:56.9]} 3... exf4 {[%clk 0:02:57.9]} 4.
Nf3 {[%clk 0:02:57.3]} 4... g5 {[%clk 0:02:52.2]} 5. g3 {[%clk 0:02:39]} 5... h6
{[%clk 0:02:29.3]} 6. d4 {[%clk 0:02:33.4]} 6... Bb4 {[%clk 0:02:14.4]} 7. d5
{[%clk 0:02:26.6]} 7... Nb8 {[%clk 0:01:59.7]} 8. Qd4 {[%clk 0:02:13.3]} 8...
Bxc3+ {[%clk 0:01:58.6]} 9. Qxc3 {[%clk 0:02:11.9]} 9... Qf6 {[%clk 0:01:59]}
10. e5 {[%clk 0:02:04.9]} 10... Qb6 {[%clk 0:01:47.6]} 11. gxf4 {[%clk
0:01:57.2]} 11... g4 {[%clk 0:01:34.7]} 12. Be3 {[%clk 0:01:24.3]} 12... Qg6
{[%clk 0:01:20]} 13. Bd3 {[%clk 0:00:41.6]} 13... Qh5 {[%clk 0:01:15.1]} 14.
Qxc7 {[%clk 0:00:20.6]} 14... Na6 {[%clk 0:01:14.2]} 15. Bxa6 {[%clk 0:00:20.7]}
15... bxa6 {[%clk 0:01:12.3]} 16. Nd4 {[%clk 0:00:19.3]} 16... g3 {[%clk
0:00:56.9]} 17. Kd2 {[%clk 0:00:13.4]} 17... gxh2 {[%clk 0:00:50.1]} 18. Raf1
{[%clk 0:00:06.1]} 18... Ne7 {[%clk 0:00:48.6]} 19. Rf2 {[%clk 0:00:06.2]} 19...
Nxd5 {[%clk 0:00:47.3]} 20. Qd6 {[%clk 0:00:05.7]} 20... Nxe3 {[%clk 0:00:43.2]}
21. Kxe3 {[%clk 0:00:06]} 21... Qh3+ {[%clk 0:00:42.6]} 22. Kd2 {[%clk
0:00:04.2]} 22... Qg4 {[%clk 0:00:37.6]} 23. Rfxh2 {[%clk 0:00:03.3]} 23...
Qxf4+ {[%clk 0:00:37.7]} 24. Kd3 {[%clk 0:00:02.7]} 24... Bb7 {[%clk 0:00:32.7]}
25. Rh4 {[%clk 0:00:02.6]} 25... Be4+ {[%clk 0:00:27.2]} 26. Ke2 {[%clk
0:00:02.1]} 26... Qg3 {[%clk 0:00:18]} 27. Rxe4 {[%clk 0:00:02.1]} 27... Qg2+
{[%clk 0:00:18.4]} 28. Kd3 {[%clk 0:00:02.7]} 28... Qxh1 {[%clk 0:00:17.7]} 29.
Nf5 {[%clk 0:00:03.1]} 29... Qf3+ {[%clk 0:00:18.2]} 30. Kd4 {[%clk 0:00:03]}
30... Qxf5 {[%clk 0:00:18.6]} 31. e6 {[%clk 0:00:02.4]} 31... fxe6 {[%clk
0:00:15.5]} 0-1

[Event "Early-Titled-Tuesday-Blitz-August-29-2023"]
[Site "Chess.com"]
[Date "2023.08.29"]
[Round "8"]
[White "VerdeNotte"]
[Black "isaak2009"]
[Result "1-0"]
[WhiteElo "2891"]
[BlackElo "2554"]
[TimeControl "180+1"]
[EndTime "9:26:45 PDT"]
[Termination "VerdeNotte won by checkmate"]

1. e4 {[%clk 0:02:57.1]} 1... c6 {[%clk 0:02:59.4]} 2. d4 {[%clk 0:02:56.2]}
2... d5 {[%clk 0:03:00.1]} 3. Nc3 {[%clk 0:02:56.9]} 3... dxe4 {[%clk
0:03:00.2]} 4. Nxe4 {[%clk 0:02:57.8]} 4... Bf5 {[%clk 0:03:00.9]} 5. Ng3 {[%clk
0:02:58]} 5... Bg6 {[%clk 0:03:01.6]} 6. h4 {[%clk 0:02:58.5]} 6... h6 {[%clk
0:03:01.9]} 7. h5 {[%clk 0:02:59]} 7... Bh7 {[%clk 0:03:01.9]} 8. Nf3 {[%clk
0:02:59.9]} 8... Nd7 {[%clk 0:03:01.3]} 9. Bd3 {[%clk 0:03:00.6]} 9... Bxd3
{[%clk 0:03:01.9]} 10. Qxd3 {[%clk 0:03:01.5]} 10... Ngf6 {[%clk 0:03:02.4]} 11.
Bd2 {[%clk 0:03:01.8]} 11... e6 {[%clk 0:03:03.1]} 12. O-O-O {[%clk 0:03:02.2]}
12... Qc7 {[%clk 0:03:03.7]} 13. Ne4 {[%clk 0:03:01.4]} 13... Be7 {[%clk
0:03:02.2]} 14. g3 {[%clk 0:03:01.4]} 14... Nxe4 {[%clk 0:02:58]} 15. Qxe4
{[%clk 0:03:01.7]} 15... Nf6 {[%clk 0:02:58.7]} 16. Qe2 {[%clk 0:03:01.8]} 16...
Bd6 {[%clk 0:02:57.2]} 17. Kb1 {[%clk 0:03:00]} 17... O-O-O {[%clk 0:02:54.3]}
18. Ne5 {[%clk 0:02:59.2]} 18... Kb8 {[%clk 0:02:52.9]} 19. Nc4 {[%clk
0:02:58.8]} 19... Ka8 {[%clk 0:02:51.2]} 20. Nxd6 {[%clk 0:02:58.8]} 20... Qxd6
{[%clk 0:02:51.1]} 21. Bf4 {[%clk 0:02:59.1]} 21... Qd5 {[%clk 0:02:51.4]} 22.
Be5 {[%clk 0:02:59.5]} 22... Rhg8 {[%clk 0:02:48.1]} 23. g4 {[%clk 0:02:35.6]}
23... Nd7 {[%clk 0:02:45.7]} 24. Bc7 {[%clk 0:02:35.2]} 24... Rc8 {[%clk
0:02:40.2]} 25. c4 {[%clk 0:02:34.5]} 25... Qg5 {[%clk 0:02:39.9]} 26. Bd6
{[%clk 0:02:29.3]} 26... Nb6 {[%clk 0:02:30.8]} 27. Rh3 {[%clk 0:02:18.4]} 27...
f5 {[%clk 0:02:01.6]} 28. f3 {[%clk 0:01:48.5]} 28... fxg4 {[%clk 0:01:56.5]}
29. fxg4 {[%clk 0:01:48.5]} 29... Rgd8 {[%clk 0:01:50]} 30. c5 {[%clk
0:01:42.5]} 30... Nd5 {[%clk 0:01:47.8]} 31. Ra3 {[%clk 0:01:42.7]} 31... b5
{[%clk 0:01:30.4]} 32. cxb6 {[%clk 0:01:41.1]} 32... Nxb6 {[%clk 0:01:17.4]} 33.
Qa6 {[%clk 0:01:39]} 33... Rd7 {[%clk 0:01:10]} 34. Qxb6 {[%clk 0:01:38.5]}
34... Qxg4 {[%clk 0:00:53.6]} 35. Rc1 {[%clk 0:01:31.4]} 35... Qe4+ {[%clk
0:00:27]} 36. Ka1 {[%clk 0:01:31.4]} 36... Rb7 {[%clk 0:00:17.8]} 37. Qc5 {[%clk
0:01:23.3]} 37... Qe2 {[%clk 0:00:17]} 38. Qc2 {[%clk 0:01:15.4]} 38... Qxh5
{[%clk 0:00:17.5]} 39. Bc5 {[%clk 0:01:12]} 39... e5 {[%clk 0:00:13.9]} 40. Qa4
{[%clk 0:00:57.3]} 40... Qg5 {[%clk 0:00:06.1]} 41. Rb1 {[%clk 0:00:57.5]} 41...
Rcc7 {[%clk 0:00:06]} 42. d5 {[%clk 0:00:52.4]} 42... cxd5 {[%clk 0:00:05.4]}
43. Qe8+ {[%clk 0:00:52.4]} 43... Rb8 {[%clk 0:00:05.9]} 44. Qc6+ {[%clk
0:00:52.7]} 44... Rbb7 {[%clk 0:00:01.2]} 45. Rxa7+ {[%clk 0:00:52.5]} 45... Kb8
{[%clk 0:00:01.7]} 46. Qe8+ {[%clk 0:00:50.3]} 46... Rc8 {[%clk 0:00:01.7]} 47.
Ra8+ {[%clk 0:00:50.3]} 47... Kxa8 {[%clk 0:00:02.6]} 48. Qxc8+ {[%clk
0:00:50.5]} 48... Rb8 {[%clk 0:00:03.5]} 49. Qa6# {[%clk 0:00:50.9]} 1-0

[Event "Early-Titled-Tuesday-Blitz-August-29-2023"]
[Site "Chess.com"]
[Date "2023.08.29"]
[Round "8"]
[White "CSB7"]
[Black "MathiasWomacka"]
[Result "1/2-1/2"]
[WhiteElo "2685"]
[BlackElo "2475"]
[TimeControl "180+1"]
[EndTime "9:26:46 PDT"]
[Termination "Game drawn by repetition"]

1. d4 {[%clk 0:03:00.9]} 1... Nf6 {[%clk 0:02:58.8]} 2. Nf3 {[%clk 0:02:59.9]}
2... e6 {[%clk 0:02:59.2]} 3. c4 {[%clk 0:02:56.2]} 3... Bb4+ {[%clk 0:02:57.7]}
4. Nbd2 {[%clk 0:02:53.7]} 4... O-O {[%clk 0:02:56.6]} 5. a3 {[%clk 0:02:53.6]}
5... Be7 {[%clk 0:02:56.7]} 6. e4 {[%clk 0:02:53.4]} 6... d5 {[%clk 0:02:57.3]}
7. e5 {[%clk 0:02:51.6]} 7... Nfd7 {[%clk 0:02:56.9]} 8. Bd3 {[%clk 0:02:50.4]}
8... c5 {[%clk 0:02:55]} 9. h4 {[%clk 0:02:50]} 9... g6 {[%clk 0:02:53.6]} 10.
h5 {[%clk 0:02:00.5]} 10... cxd4 {[%clk 0:02:51.6]} 11. cxd5 {[%clk 0:01:58.1]}
11... exd5 {[%clk 0:02:49.6]} 12. Nb3 {[%clk 0:01:56.2]} 12... Nc6 {[%clk
0:02:39]} 13. e6 {[%clk 0:01:47.8]} 13... fxe6 {[%clk 0:02:11.9]} 14. hxg6
{[%clk 0:01:46.9]} 14... Nde5 {[%clk 0:02:11.7]} 15. Nxe5 {[%clk 0:01:20.9]}
15... Nxe5 {[%clk 0:02:12.6]} 16. Qh5 {[%clk 0:01:00.4]} 16... Nxd3+ {[%clk
0:02:00.1]} 17. Kd2 {[%clk 0:00:59.9]} 17... Bg5+ {[%clk 0:00:51.9]} 18. Kxd3
{[%clk 0:00:57.7]} 18... h6 {[%clk 0:00:52]} 19. f4 {[%clk 0:00:37.2]} 19...
Rxf4 {[%clk 0:00:49.7]} 20. Bxf4 {[%clk 0:00:34.4]} 20... Bxf4 {[%clk
0:00:50.6]} 21. Rhf1 {[%clk 0:00:15]} 21... Qg5 {[%clk 0:00:37.4]} 22. Qxg5
{[%clk 0:00:14]} 22... hxg5 {[%clk 0:00:32]} 23. g3 {[%clk 0:00:12.8]} 23...
Bxg3 {[%clk 0:00:31.2]} 24. Rf7 {[%clk 0:00:13.3]} 24... e5 {[%clk 0:00:30.7]}
25. Rh1 {[%clk 0:00:13]} 25... Be6 {[%clk 0:00:24.2]} 26. Rfh7 {[%clk
0:00:08.7]} 26... Bf5+ {[%clk 0:00:18.3]} 27. Kd2 {[%clk 0:00:07.9]} 27... Rf8
{[%clk 0:00:15.4]} 28. Rh8+ {[%clk 0:00:07.1]} 28... Kg7 {[%clk 0:00:15.8]} 29.
R1h7+ {[%clk 0:00:07.7]} 29... Kxg6 {[%clk 0:00:15.9]} 30. Rxf8 {[%clk
0:00:08.6]} 30... Bf4+ {[%clk 0:00:14.2]} 31. Ke1 {[%clk 0:00:07.4]} 31... Bg3+
{[%clk 0:00:13.8]} 32. Kd2 {[%clk 0:00:07.9]} 32... Bf4+ {[%clk 0:00:13.4]} 33.
Ke1 {[%clk 0:00:07.9]} 33... Bg3+ {[%clk 0:00:13.7]} 34. Kd2 {[%clk 0:00:06.1]}
1/2-1/2